[Event "14th Vandoeuvre Open 2018"]
[Site "?"]
[Date "2018.01.03"]
[Round "4"]
[White "Steininger, Denis"]
[Black "Kuhn, Manfred"]
[Result "1-0"]
[ECO "B50"]
[WhiteElo "1957"]
[BlackElo "2174"]
[PlyCount "71"]
[EventDate "2018.??.??"]
[EventType "swiss"]
[EventCountry "FRA"]
[SourceTitle "Vandoeuvre"]
[TimeControl "5400+30"]
[WhiteClock "0:09:08"]
[BlackClock "1:28:45"]

1. e4 {[%emt 0:00:00]} c5 {[%emt 0:00:00]} 2. Nf3 {[%emt 0:00:02]} d6 {[%emt 0:00:09]} 3. c3 {[%emt 0:00:11]} Nf6 {[%emt 0:01:39]} 4. Be2 {[%emt 0:00:09]} Bd7 {[%emt 0:02:33]} 5. e5 {[%emt 0:00:18]} dxe5 {[%emt 0:08:05]} 6. Nxe5 {[%emt 0:00:09]} Qc7 {[%emt 0:02:42]} 7. Nxd7 {[%emt 0:00:42]} Nbxd7 {[%emt 0:01:48]} 8. d4 {[%emt 0:00:06]} e6 {[%emt 0:08:26]} 9. Na3 {[%emt 0:00:19]} a6 {[%emt 0:02:14]} 10. Nc4 {[%emt 0:00:03]} b5 {[%emt 0:01:42]} 11. Ne3 {[%emt 0:00:05]} Be7 {[%emt 0:03:31]} 12. a4 {[%emt 0:00:39]} Rb8 {[%emt 0:03:05]} 13. O-O {[%emt 0:00:35]} O-O {[%emt 0:00:22]} 14. f4 {[%emt 0:00:07]} cxd4 {[%emt 0:06:04]} 15. cxd4 {[%emt 0:00:13]} Rfd8 {[%emt 0:02:28]} 16. f5 {[%emt 0:00:16]} e5 {[%emt 0:01:22]} 17. dxe5 {[%emt 0:01:35]} Nxe5 {[%emt 0:02:28]} 18. Qb3 {[%emt 0:00:08]} Qb6 {[%emt 0:05:41]} 19. axb5 {[%emt 0:00:55]} axb5 {[%emt 0:06:28]} 20. h3 {[%emt 0:00:28]} Bc5 {[%emt 0:01:25]} 21. Kh1 {[%emt 0:00:20]} Ne4 {[%emt 0:02:07]} 22. Ng4 {[%emt 0:02:21]} Nxg4 {[%emt 0:03:59]} 23. Bxg4 {[%emt 0:00:29]} Nf2+ {[%emt 0:03:19]} 24. Kh2 {[%emt 0:00:24]} Qc7+ {[%emt 0:01:31]} 25. g3 {[%emt 0:00:22]} Rd3 {[%emt 0:01:20]} 26. Bf4 {[%emt 0:02:01]} Rxb3 {[%emt 0:09:05]} 27. Bxc7 {[%emt 0:00:07]} Rc8 {[%emt 0:00:41]} 28. Rxf2 {[%emt 0:01:47]} Bxf2 {[%emt 0:05:20]} 29. f6 {[%emt 0:00:21]} Rf8 {[%emt 0:00:30]} 30. Be5 {[%emt 0:01:00]} gxf6 {[%emt 0:01:12]} 31. Bxf6 {[%emt 0:00:44]} Bxg3+ {[%emt 0:00:17]} 32. Kg2 {[%emt 0:00:11]} Bf4 {[%emt 0:01:30]} 33. Bf3 {[%emt 0:01:03]} Re3 {[%emt 0:02:22]} 34. Kf2 {[%emt 0:00:46]} Re6 {[%emt 0:00:59]} 35. Rg1+ {[%emt 0:00:13]} Bg3+ {[%emt 0:01:58]} 36. Rxg3# {[%emt 0:00:06]} 1-0

[Event "14th Vandoeuvre Open 2018"]
[Site "?"]
[Date "2018.01.03"]
[Round "4"]
[White "Rittie, Daniel"]
[Black "Poplavsky, Alexandre"]
[Result "1-0"]
[ECO "A20"]
[WhiteElo "1944"]
[BlackElo "1739"]
[PlyCount "67"]
[EventDate "2018.??.??"]
[EventType "swiss"]
[EventCountry "FRA"]
[SourceTitle "Vandoeuvre"]
[TimeControl "5400+30"]
[WhiteClock "0:04:34"]
[BlackClock "0:06:34"]

1. c4 {[%emt 0:00:00]} e5 {[%emt 0:00:00]} 2. g3 {[%emt 0:00:00]} Nc6 {[%emt 0:00:22]} 3. Bg2 {[%emt 0:00:00]} Bc5 {[%emt 0:00:19]} 4. Nc3 {[%emt 0:00:21]} d6 {[%emt 0:00:13]} 5. d3 {[%emt 0:02:54]} Bf5 {[%emt 0:02:23]} 6. a3 {[%emt 0:01:44]} Qd7 {[%emt 0:02:38]} 7. b4 {[%emt 0:03:33]} Bd4 8. Bb2 {[%emt 0:00:17]} a6 {[%emt 0:02:05]} 9. e3 {[%emt 0:01:19]} Ba7 {[%emt 0:00:09]} 10. Nd5 {[%emt 0:06:51]} Nd8 {[%emt 0:05:44]} 11. Ne2 {[%emt 0:01:18]} c6 {[%emt 0:02:47]} 12. Ndc3 {[%emt 0:00:07]} Ne7 {[%emt 0:00:15]} 13. O-O {[%emt 0:02:46]} Bh3 {[%emt 0:00:51]} 14. d4 {[%emt 0:00:35]} Ng6 {[%emt 0:05:17]} 15. dxe5 {[%emt 0:13:13]} Nxe5 {[%emt 0:11:29]} 16. Ne4 {[%emt 0:00:50]} Bb8 {[%emt 0:00:23]} 17. Rc1 {[%emt 0:01:40]} O-O {[%emt 0:12:20]} 18. Nf4 {[%emt 0:12:11]} Bxg2 {[%emt 0:16:13]} 19. Kxg2 {[%emt 0:00:03]} f6 {[%emt 0:00:08]} 20. Qc2 {[%emt 0:09:33]} Ndf7 {[%emt 0:09:28]} 21. Rfd1 {[%emt 0:02:57]} Qe7 {[%emt 0:03:32]} 22. Nd2 {[%emt 0:07:27]} Nh6 {[%emt 0:07:48]} 23. h3 {[%emt 0:09:00]} g5 {[%emt 0:01:52]} 24. Ne2 {[%emt 0:02:07]} Qf7 {[%emt 0:06:34]} 25. Ne4 {[%emt 0:04:10]} Rd8 {[%emt 0:03:11]} 26. Bxe5 {[%emt 0:04:10]} fxe5 {[%emt 0:00:43]} 27. Nxg5 {[%emt 0:00:30]} Qf5 {[%emt 0:00:18]} 28. Nf3 {[%emt 0:01:38]} Rf8 {[%emt 0:01:24]} 29. Qxf5 {[%emt 0:02:19]} Rxf5 {[%emt 0:00:08]} 30. Rd2 {[%emt 0:01:01]} Bc7 {[%emt 0:00:15]} 31. Nc3 {[%emt 0:01:23]} Raf8 {[%emt 0:01:34]} 32. Nh4 {[%emt 0:03:20]} Rg5 {[%emt 0:01:03]} 33. Ne4 {[%emt 0:00:39]} Rg7 34. Nxd6 1-0

[Event "14th Vandoeuvre Open 2018"]
[Site "?"]
[Date "2018.01.03"]
[Round "4"]
[White "Rittie, Daniel"]
[Black "Budak, Rewi"]
[Result "0-1"]
[ECO "A30"]
[WhiteElo "1944"]
[BlackElo "2015"]
[PlyCount "110"]
[EventDate "2018.??.??"]
[EventType "swiss"]
[EventCountry "FRA"]
[SourceTitle "Vandoeuvre"]
[TimeControl "5400+30"]
[WhiteClock "0:08:34"]
[BlackClock "0:01:05"]

1. c4 {[%emt 0:00:00]} c5 {[%emt 0:09:47]} 2. g3 {[%emt 0:00:00]} Nc6 {[%emt 0:00:41]} 3. Bg2 {[%emt 0:00:00]} Nf6 {[%emt 0:09:46]} 4. Nc3 {[%emt 0:00:00]} g6 {[%emt 0:00:37]} 5. d3 {[%emt 0:02:56]} Bg7 {[%emt 0:00:35]} 6. e4 {[%emt 0:03:54]} O-O {[%emt 0:00:52]} 7. Nge2 {[%emt 0:00:06]} a6 {[%emt 0:01:02]} 8. O-O {[%emt 0:02:13]} d6 {[%emt 0:01:27]} 9. Rb1 {[%emt 0:03:33]} Rb8 {[%emt 0:00:10]} 10. a3 {[%emt 0:02:13]} b5 {[%emt 0:00:25]} 11. cxb5 {[%emt 0:06:31]} axb5 {[%emt 0:02:00]} 12. b4 {[%emt 0:00:20]} Ba6 {[%emt 0:03:03]} 13. h3 {[%emt 0:04:07]} e6 {[%emt 0:08:36]} 14. Be3 {[%emt 0:06:09]} Qe7 {[%emt 0:00:23]} 15. d4 {[%emt 0:03:43]} cxd4 {[%emt 0:01:19]} 16. Nxd4 {[%emt 0:00:34]} Rfc8 {[%emt 0:00:08]} 17. Nxc6 {[%emt 0:04:00]} Rxc6 {[%emt 0:05:45]} 18. Qb3 {[%emt 0:00:59]} Rbc8 {[%emt 0:00:54]} 19. Rbc1 {[%emt 0:00:14]} Rc4 {[%emt 0:05:44]} 20. Ne2 {[%emt 0:04:21]} Qc7 {[%emt 0:03:32]} 21. Qd3 {[%emt 0:04:20]} Nd7 {[%emt 0:03:21]} 22. Rfd1 {[%emt 0:02:35]} Bf8 {[%emt 0:03:17]} 23. Rxc4 {[%emt 0:10:08]} bxc4 {[%emt 0:10:38]} 24. Qc2 {[%emt 0:01:06]} c3 {[%emt 0:06:47]} 25. Bf1 {[%emt 0:07:41]} Ne5 {[%emt 0:01:26]} 26. Nd4 {[%emt 0:03:04]} Bxf1 {[%emt 0:00:24]} 27. Kxf1 {[%emt 0:00:13]} Qc4+ {[%emt 0:00:18]} 28. Kg2 {[%emt 0:02:05]} Ra8 {[%emt 0:01:42]} 29. Bc1 {[%emt 0:06:20]} Nc6 {[%emt 0:00:36]} 30. Ne2 {[%emt 0:01:44]} Nxb4 {[%emt 0:02:15]} 31. Qxc3 {[%emt 0:06:37]} Qxe2 {[%emt 0:01:49]} 32. Bb2 {[%emt 0:08:10]} Qxe4+ {[%emt 0:01:54]} 33. Kg1 {[%emt 0:00:20]} e5 {[%emt 0:00:50]} 34. Qxb4 {[%emt 0:02:26]} Qxb4 {[%emt 0:01:19]} 35. axb4 {[%emt 0:00:04]} Rb8 {[%emt 0:00:10]} 36. Bc3 {[%emt 0:00:20]} Rb5 {[%emt 0:00:07]} 37. Kf1 {[%emt 0:00:41]} f6 {[%emt 0:00:08]} 38. Rb1 {[%emt 0:00:17]} d5 {[%emt 0:00:07]} 39. Ke2 {[%emt 0:00:13]} Kf7 {[%emt 0:00:36]} 40. f3 {[%emt 0:00:52]} Ke6 {[%emt 0:00:15]} 41. Kd3 {[%emt 0:00:06]} f5 {[%emt 0:00:28]} 42. Ra1 {[%emt 0:01:01]} d4 {[%emt 0:06:17]} 43. Bd2 {[%emt 0:00:10]} Kd5 {[%emt 0:00:32]} 44. Ra5 {[%emt 0:03:27]} e4+ {[%emt 0:00:15]} 45. fxe4+ {[%emt 0:00:31]} fxe4+ {[%emt 0:00:07]} 46. Ke2 {[%emt 0:00:35]} Rxa5 {[%emt 0:00:08]} 47. bxa5 {[%emt 0:00:02]} Bc5 {[%emt 0:00:20]} 48. Bf4 {[%emt 0:01:59]} Ba7 {[%emt 0:00:30]} 49. Bc7 {[%emt 0:00:28]} Kc6 {[%emt 0:00:58]} 50. Bd8 {[%emt 0:00:32]} Kb5 {[%emt 0:02:21]} 51. g4 {[%emt 0:00:25]} Bc5 {[%emt 0:00:15]} 52. h4 Bb4 53. Bb6 Bd6 54. Bd8 Bc5 55. Kd2 d3 {Ke3 Bb4} 0-1

[Event "14th Vandoeuvre Open 2018"]
[Site "?"]
[Date "2018.01.03"]
[Round "4"]
[White "Willockx, Ritsaart"]
[Black "Schmitt, Axel"]
[Result "1/2-1/2"]
[ECO "A01"]
[WhiteElo "1940"]
[BlackElo "2323"]
[PlyCount "80"]
[EventDate "2018.??.??"]
[EventType "swiss"]
[EventCountry "FRA"]
[SourceTitle "Vandoeuvre"]
[TimeControl "5400+30"]
[WhiteClock "0:30:38"]
[BlackClock "0:15:46"]

1. b3 {[%emt 0:00:00]} b6 {[%emt 0:00:07]} 2. Bb2 {[%emt 0:00:00]} Bb7 {[%emt 0:00:06]} 3. e3 {[%emt 0:00:00]} e6 {[%emt 0:00:08]} 4. Nf3 {[%emt 0:02:06]} Nf6 {[%emt 0:00:34]} 5. Be2 {[%emt 0:01:59]} c5 {[%emt 0:00:45]} 6. O-O {[%emt 0:00:12]} Be7 {[%emt 0:00:07]} 7. d3 {[%emt 0:01:01]} O-O {[%emt 0:00:09]} 8. Nbd2 {[%emt 0:00:02]} d5 {[%emt 0:03:35]} 9. Ne5 {[%emt 0:00:28]} Nc6 {[%emt 0:00:27]} 10. Nxc6 {[%emt 0:07:08]} Bxc6 {[%emt 0:00:20]} 11. f4 {[%emt 0:02:02]} a5 {[%emt 0:07:46]} 12. a4 {[%emt 0:04:34]} b5 {[%emt 0:03:48]} 13. axb5 {[%emt 0:01:14]} Bxb5 {[%emt 0:00:43]} 14. Bf3 {[%emt 0:05:13]} Bc6 {[%emt 0:07:52]} 15. Qe2 {[%emt 0:02:27]} a4 {[%emt 0:05:06]} 16. e4 {[%emt 0:14:55]} axb3 {[%emt 0:02:10]} 17. Nxb3 {[%emt 0:05:31]} Qb6 {[%emt 0:02:47]} 18. Kh1 {[%emt 0:02:55]} dxe4 {[%emt 0:18:13]} 19. Bxe4 {[%emt 0:03:21]} Nxe4 {[%emt 0:03:05]} 20. dxe4 {[%emt 0:00:06]} c4 {[%emt 0:07:08]} 21. Rxa8 {[%emt 0:12:35]} Rxa8 {[%emt 0:00:24]} 22. Nd4 {[%emt 0:00:38]} Qxb2 {[%emt 0:02:23]} 23. Nxc6 {[%emt 0:00:09]} Bf8 {[%emt 0:00:20]} 24. Ne5 {[%emt 0:05:12]} Ra2 {[%emt 0:04:55]} 25. Qxc4 {[%emt 0:03:40]} Qxc2 {[%emt 0:00:30]} 26. Qxc2 {[%emt 0:00:13]} Rxc2 {[%emt 0:00:01]} 27. Nf3 {[%emt 0:01:18]} Rc4 {[%emt 0:00:25]} 28. Re1 {[%emt 0:03:31]} Bb4 {[%emt 0:00:46]} 29. Ne5 {[%emt 0:00:56]} Rd4 {[%emt 0:01:35]} 30. Nc6 {[%emt 0:00:43]} Rc4 {[%emt 0:00:17]} 31. Nxb4 {[%emt 0:01:13]} Rxb4 {[%emt 0:00:06]} 32. g3 {[%emt 0:00:14]} Rb2 {[%emt 0:00:03]} 33. e5 {[%emt 0:02:19]} g6 {[%emt 0:00:09]} 34. Rc1 {[%emt 0:01:15]} h5 {[%emt 0:00:26]} 35. Rc7 {[%emt 0:00:53]} Kg7 {[%emt 0:01:41]} 36. h4 {[%emt 0:01:03]} Ra2 {[%emt 0:00:07]} 37. Rd7 {[%emt 0:00:25]} Rb2 {[%emt 0:00:06]} 38. Rc7 {[%emt 0:00:30]} Ra2 {[%emt 0:00:02]} 39. Rd7 {[%emt 0:01:23]} Rb2 {[%emt 0:00:08]} 40. Rc7 {[%emt 0:00:50]} Ra2 {[%emt 0:00:02]} 1/2-1/2

[Event "14th Vandoeuvre Open 2018"]
[Site "?"]
[Date "2018.01.03"]
[Round "4"]
[White "Grandmougin, Olivier"]
[Black "Oney, Remel"]
[Result "0-1"]
[ECO "A03"]
[WhiteElo "1904"]
[BlackElo "1828"]
[PlyCount "58"]
[EventDate "2018.??.??"]
[EventType "swiss"]
[EventCountry "FRA"]
[SourceTitle "Vandoeuvre"]
[TimeControl "5400+30"]
[WhiteClock "0:02:17"]
[BlackClock "0:33:54"]

1. f4 {[%emt 0:07:29]} d5 {[%emt 0:01:49]} 2. Nf3 {[%emt 0:00:09]} c5 {[%emt 0:00:11]} 3. e3 {[%emt 0:00:06]} Nc6 {[%emt 0:00:23]} 4. Bb5 {[%emt 0:00:23]} Bd7 {[%emt 0:02:08]} 5. b3 {[%emt 0:03:49]} Nf6 {[%emt 0:02:29]} 6. Bb2 {[%emt 0:00:23]} e6 {[%emt 0:04:06]} 7. O-O {[%emt 0:00:11]} a6 {[%emt 0:03:50]} 8. Bxc6 {[%emt 0:04:21]} Bxc6 {[%emt 0:01:20]} 9. Ne5 {[%emt 0:00:12]} d4 {[%emt 0:02:42]} 10. Nxc6 {[%emt 0:04:59]} bxc6 {[%emt 0:01:06]} 11. Qf3 {[%emt 0:00:12]} Qb6 {[%emt 0:07:33]} 12. Na3 {[%emt 0:03:28]} Rd8 {[%emt 0:01:04]} 13. Nc4 {[%emt 0:01:10]} Qc7 {[%emt 0:01:50]} 14. Ne5 {[%emt 0:00:49]} Rd5 {[%emt 0:10:26]} 15. Qe2 {[%emt 0:09:05]} Qb7 {[%emt 0:08:14]} 16. e4 {[%emt 0:02:05]} Rd8 {[%emt 0:01:31]} 17. f5 {[%emt 0:00:23]} Bd6 {[%emt 0:05:13]} 18. Nxf7 {[%emt 0:02:26]} Bxh2+ {[%emt 0:00:33]} 19. Kxh2 {[%emt 0:00:09]} Qxf7 {[%emt 0:01:03]} 20. e5 {[%emt 0:01:32]} Nd5 {[%emt 0:09:16]} 21. fxe6 {[%emt 0:03:13]} Qxe6 22. Ba3 {[%emt 0:03:36]} g5 {[%emt 0:26:12]} 23. Bxc5 {[%emt 0:02:47]} Nf4 {[%emt 0:00:29]} 24. Qf3 {[%emt 0:03:16]} d3 {[%emt 0:03:29]} 25. c4 {[%emt 0:07:59]} Rd7 {[%emt 0:04:01]} 26. Rae1 {[%emt 0:02:00]} Rf7 {[%emt 0:00:30]} 27. Kg1 {[%emt 0:02:19]} Ne2+ {[%emt 0:00:14]} 28. Kh2 {[%emt 0:02:05]} Rxf3 {[%emt 0:00:14]} 29. Rxf3 {[%emt 0:00:00]} Qxe5+ {[%emt 0:00:17]} 0-1

[Event "14th Vandoeuvre Open 2018"]
[Site "?"]
[Date "2018.01.03"]
[Round "4"]
[White "Berthier, Grant"]
[Black "Rauta, Nicolas"]
[Result "1/2-1/2"]
[ECO "D00"]
[WhiteElo "1799"]
[BlackElo "1963"]
[PlyCount "100"]
[EventDate "2018.??.??"]
[EventType "swiss"]
[EventCountry "FRA"]
[SourceTitle "Vandoeuvre"]
[TimeControl "5400+30"]
[WhiteClock "0:01:03"]
[BlackClock "0:17:39"]

1. d4 {[%emt 0:02:58]} d5 {[%emt 0:00:00]} 2. Bf4 {[%emt 0:02:05]} Nf6 {[%emt 0:00:22]} 3. e3 {[%emt 0:00:47]} c6 {[%emt 0:03:15]} 4. Nd2 {[%emt 0:05:44]} g6 {[%emt 0:01:13]} 5. h3 {[%emt 0:00:30]} Bg7 {[%emt 0:00:08]} 6. Ngf3 {[%emt 0:00:09]} Nbd7 {[%emt 0:00:40]} 7. Bd3 {[%emt 0:02:31]} O-O {[%emt 0:05:43]} 8. O-O {[%emt 0:01:07]} b6 {[%emt 0:17:08]} 9. c3 {[%emt 0:12:26]} Bb7 {[%emt 0:01:20]} 10. Re1 {[%emt 0:06:05]} c5 {[%emt 0:04:39]} 11. e4 {[%emt 0:05:29]} dxe4 {[%emt 0:14:23]} 12. Nxe4 {[%emt 0:06:13]} cxd4 {[%emt 0:01:24]} 13. cxd4 {[%emt 0:03:46]} Nxe4 {[%emt 0:05:26]} 14. Bxe4 {[%emt 0:00:09]} Bxe4 {[%emt 0:00:04]} 15. Rxe4 {[%emt 0:00:10]} Nf6 {[%emt 0:00:11]} 16. Re2 {[%emt 0:00:22]} Nd5 {[%emt 0:05:42]} 17. Bh2 {[%emt 0:00:35]} e6 {[%emt 0:00:51]} 18. Rc1 {[%emt 0:03:03]} Qd7 {[%emt 0:03:08]} 19. Qb3 {[%emt 0:02:48]} Rac8 {[%emt 0:02:39]} 20. Rec2 {[%emt 0:01:31]} Bh6 {[%emt 0:02:55]} 21. Ne5 {[%emt 0:01:50]} Qb7 {[%emt 0:00:34]} 22. Rxc8 {[%emt 0:00:09]} Rxc8 {[%emt 0:00:28]} 23. Rxc8+ {[%emt 0:00:54]} Qxc8 {[%emt 0:00:04]} 24. Qc4 {[%emt 0:00:12]} Qxc4 {[%emt 0:05:15]} 25. Nxc4 {[%emt 0:00:19]} Bc1 {[%emt 0:01:01]} 26. b3 {[%emt 0:05:08]} Nc3 {[%emt 0:03:23]} 27. Bb8 {[%emt 0:01:22]} b5 {[%emt 0:00:51]} 28. Ne5 {[%emt 0:02:03]} a6 {[%emt 0:01:39]} 29. Nd3 {[%emt 0:00:26]} Ba3 {[%emt 0:02:12]} 30. Nc5 {[%emt 0:00:54]} Nxa2 {[%emt 0:07:21]} 31. Nxa6 {[%emt 0:00:32]} Nc1 {[%emt 0:00:05]} 32. b4 {[%emt 0:05:40]} Ne2+ {[%emt 0:00:31]} 33. Kf1 {[%emt 0:00:01]} Nxd4 {[%emt 0:00:08]} 34. Be5 {[%emt 0:00:26]} Nc6 {[%emt 0:01:14]} 35. Bc3 {[%emt 0:00:10]} Kf8 {[%emt 0:01:07]} 36. Ke2 {[%emt 0:00:13]} Ke7 {[%emt 0:00:16]} 37. Kd3 {[%emt 0:00:14]} Kd6 {[%emt 0:01:11]} 38. Kc2 {[%emt 0:00:33]} e5 {[%emt 0:03:44]} 39. Bd2 {[%emt 0:01:43]} Nd4+ {[%emt 0:01:43]} 40. Kb1 {[%emt 0:00:44]} Ne2 {[%emt 0:00:38]} 41. Kc2 {[%emt 0:00:43]} Kd5 {[%emt 0:02:47]} 42. Kd3 {[%emt 0:03:16]} Nf4+ {[%emt 0:00:54]} 43. Kc3 {[%emt 0:00:21]} Ne2+ {[%emt 0:01:02]} 44. Kd3 {[%emt 0:00:24]} Nd4 {[%emt 0:01:36]} 45. Kc3 {[%emt 0:01:44]} f5 {[%emt 0:01:02]} 46. Nc5 {[%emt 0:00:39]} Ne2+ {[%emt 0:00:14]} 47. Kd3 {[%emt 0:01:33]} Nf4+ {[%emt 0:00:31]} 48. Kc3 {[%emt 0:04:34]} Ne2+ {[%emt 0:00:22]} 49. Kd3 {[%emt 0:01:58]} Nf4+ {[%emt 0:00:40]} 50. Kc3 {[%emt 0:00:08]} Ne2+ {[%emt 0:00:13]} 1/2-1/2

[Event "14th Vandoeuvre Open 2018"]
[Site "?"]
[Date "2018.01.03"]
[Round "4"]
[White "Randrianaina, Merlin"]
[Black "Rittie, Daniel"]
[Result "0-1"]
[ECO "A36"]
[WhiteElo "1770"]
[BlackElo "1944"]
[PlyCount "164"]
[EventDate "2018.??.??"]
[EventType "swiss"]
[EventCountry "FRA"]
[SourceTitle "Vandoeuvre"]
[TimeControl "5400+30"]
[WhiteClock "0:04:20"]
[BlackClock "0:00:32"]

1. c4 {[%emt 0:00:00]} c5 {[%emt 0:00:07]} 2. g3 {[%emt 0:00:00]} g6 {[%emt 0:00:31]} 3. Bg2 {[%emt 0:00:00]} Bg7 {[%emt 0:00:06]} 4. Nc3 {[%emt 0:00:37]} Nc6 {[%emt 0:00:34]} 5. e4 {[%emt 0:03:41]} d6 {[%emt 0:02:47]} 6. Nge2 {[%emt 0:04:04]} Nf6 {[%emt 0:07:05]} 7. O-O {[%emt 0:07:41]} O-O {[%emt 0:00:08]} 8. d4 {[%emt 0:12:06]} cxd4 {[%emt 0:00:53]} 9. Nxd4 {[%emt 0:02:56]} Nxd4 {[%emt 0:06:07]} 10. Qxd4 {[%emt 0:00:11]} Be6 {[%emt 0:00:21]} 11. Qd3 {[%emt 0:09:50]} Qc8 {[%emt 0:01:45]} 12. b3 {[%emt 0:11:20]} Bh3 {[%emt 0:01:04]} 13. Bb2 {[%emt 0:02:00]} Bxg2 {[%emt 0:01:18]} 14. Kxg2 {[%emt 0:00:03]} Re8 {[%emt 0:05:06]} 15. Nd5 {[%emt 0:05:36]} Nxd5 {[%emt 0:10:30]} 16. Bxg7 {[%emt 0:01:26]} Nf4+ {[%emt 0:01:28]} 17. gxf4 {[%emt 0:00:12]} Kxg7 {[%emt 0:00:06]} 18. Rad1 {[%emt 0:04:03]} Qg4+ {[%emt 0:03:49]} 19. Qg3 {[%emt 0:00:25]} Qe2 {[%emt 0:00:20]} 20. Qe3 {[%emt 0:12:15]} Qxe3 {[%emt 0:19:18]} 21. fxe3 {[%emt 0:00:04]} a6 {[%emt 0:02:09]} 22. Rd5 {[%emt 0:02:31]} Rec8 {[%emt 0:01:51]} 23. Rfd1 {[%emt 0:02:22]} Rc7 {[%emt 0:00:44]} 24. e5 {[%emt 0:06:58]} dxe5 {[%emt 0:01:19]} 25. Rxe5 {[%emt 0:02:05]} e6 {[%emt 0:00:09]} 26. Rd6 {[%emt 0:02:02]} h6 {[%emt 0:10:14]} 27. c5 {[%emt 0:03:54]} Kf6 {[%emt 0:05:20]} 28. b4 {[%emt 0:01:24]} a5 {[%emt 0:00:50]} 29. a3 {[%emt 0:03:46]} axb4 {[%emt 0:00:21]} 30. axb4 {[%emt 0:00:04]} Ra4 {[%emt 0:03:42]} 31. Rb6 {[%emt 0:00:20]} g5 {[%emt 0:00:19]} 32. Kf3 {[%emt 0:01:32]} Ra3 {[%emt 0:03:04]} 33. Re4 {[%emt 0:00:28]} Rd7 {[%emt 0:00:15]} 34. b5 {[%emt 0:00:33]} Rc3 {[%emt 0:00:38]} 35. fxg5+ {[%emt 0:00:14]} hxg5 {[%emt 0:00:11]} 36. c6 {[%emt 0:00:45]} bxc6 {[%emt 0:00:20]} 37. bxc6 {[%emt 0:00:22]} Rc7 {[%emt 0:00:15]} 38. h4 {[%emt 0:00:35]} gxh4 {[%emt 0:02:05]} 39. Rxh4 {[%emt 0:00:28]} R3xc6 {[%emt 0:00:33]} 40. Rbb4 {[%emt 0:00:29]} Rc5 {[%emt 0:01:40]} 41. Rbf4+ {[%emt 0:00:35]} Rf5 {[%emt 0:00:44]} 42. Rxf5+ {[%emt 0:00:31]} Kxf5 {[%emt 0:00:09]} 43. Rf4+ {[%emt 0:00:23]} Ke5 {[%emt 0:00:41]} 44. Re4+ {[%emt 0:00:18]} Kf6 {[%emt 0:00:28]} 45. Rh4 {[%emt 0:00:45]} Rc5 {[%emt 0:00:22]} 46. e4 {[%emt 0:00:31]} Kg6 {[%emt 0:03:43]} 47. Kf4 {[%emt 0:00:34]} e5+ {[%emt 0:04:32]} 48. Ke3 {[%emt 0:00:29]} Rc3+ {[%emt 0:00:40]} 49. Kd2 {[%emt 0:00:19]} Rf3 {[%emt 0:00:31]} 50. Rg4+ {[%emt 0:00:41]} Kf6 {[%emt 0:01:19]} 51. Rg8 {[%emt 0:00:31]} Ke7 {[%emt 0:00:24]} 52. Ke2 {[%emt 0:00:10]} Ra3 {[%emt 0:00:40]} 53. Rb8 {[%emt 0:00:33]} Kf6 {[%emt 0:01:01]} 54. Rb6+ {[%emt 0:00:34]} Kg5 {[%emt 0:00:22]} 55. Rb7 {[%emt 0:00:38]} f6 {[%emt 0:00:13]} 56. Rb6 {[%emt 0:00:34]} Kf4 {[%emt 0:01:33]} 57. Rxf6+ {[%emt 0:00:28]} Kxe4 {[%emt 0:00:01]} 58. Rh6 {[%emt 0:00:29]} Ra2+ {[%emt 0:00:06]} 59. Ke1 {[%emt 0:00:30]} Kf4 {[%emt 0:00:25]} 60. Rh4+ {[%emt 0:00:27]} Kf3 {[%emt 0:00:28]} 61. Rh3+ {[%emt 0:00:15]} Kg4 {[%emt 0:00:02]} 62. Re3 {[%emt 0:00:52]} Kf4 {[%emt 0:00:02]} 63. Rh3 {[%emt 0:00:26]} e4 {[%emt 0:00:20]} 64. Rh4+ {[%emt 0:00:32]} Kf3 {[%emt 0:00:19]} 65. Rh3+ {[%emt 0:00:31]} Kf4 {[%emt 0:00:21]} 66. Rh4+ {[%emt 0:00:26]} Ke3 {[%emt 0:00:02]} 67. Rh3+ {[%emt 0:00:29]} Kd4 {[%emt 0:00:03]} 68. Rh8 {[%emt 0:00:29]} Rb2 {[%emt 0:00:30]} 69. Rd8+ {[%emt 0:00:30]} Ke3 {[%emt 0:00:14]} 70. Kd1 {[%emt 0:00:37]} Ra2 {[%emt 0:02:05]} 71. Rd7 {[%emt 0:00:28]} Ra1+ {[%emt 0:00:28]} 72. Kc2 {[%emt 0:00:04]} Kf3 {[%emt 0:01:42]} 73. Rf7+ {[%emt 0:00:02]} Ke2 {[%emt 0:00:15]} 74. Rh7 {[%emt 0:01:04]} e3 {[%emt 0:01:19]} 75. Rh2+ {[%emt 0:00:22]} Kf3 {[%emt 0:00:02]} 76. Rh3+ {[%emt 0:00:23]} Kf2 {[%emt 0:00:02]} 77. Rh2+ {[%emt 0:00:57]} Kg3 {[%emt 0:00:02]} 78. Rh8 {[%emt 0:00:30]} e2 {[%emt 0:00:11]} 79. Rg8+ {[%emt 0:00:21]} Kf4 {[%emt 0:00:10]} 80. Rf8+ {[%emt 0:00:37]} Kg5 {[%emt 0:00:08]} 81. Rg8+ {[%emt 0:00:34]} Kf6 {[%emt 0:00:09]} 82. Rf8+ {[%emt 0:00:37]} Ke5 0-1

[Event "14th Vandoeuvre Open 2018"]
[Site "?"]
[Date "2018.01.03"]
[Round "4"]
[White "Roeder, Detlef"]
[Black "Steininger, Denis"]
[Result "0-1"]
[ECO "B24"]
[WhiteElo "1737"]
[BlackElo "1957"]
[PlyCount "56"]
[EventDate "2018.??.??"]
[EventType "swiss"]
[EventCountry "FRA"]
[SourceTitle "Vandoeuvre"]
[TimeControl "5400+30"]
[WhiteClock "1:30:56"]
[BlackClock "0:37:14"]

1. e4 {[%emt 0:00:01]} c5 {[%emt 0:00:00]} 2. Nc3 {[%emt 0:00:50]} Nc6 {[%emt 0:00:00]} 3. Bb5 {[%emt 0:02:12]} g6 {[%emt 0:00:00]} 4. f4 {[%emt 0:02:22]} Bg7 {[%emt 0:00:08]} 5. Nf3 {[%emt 0:01:07]} d6 {[%emt 0:00:06]} 6. O-O {[%emt 0:01:12]} Bd7 {[%emt 0:00:27]} 7. Bxc6 {[%emt 0:00:35]} Bxc6 {[%emt 0:00:20]} 8. d3 {[%emt 0:00:34]} b5 {[%emt 0:00:09]} 9. Ne2 {[%emt 0:07:18]} e6 {[%emt 0:00:34]} 10. c3 {[%emt 0:01:31]} Ne7 {[%emt 0:00:18]} 11. Qe1 {[%emt 0:00:42]} f5 {[%emt 0:00:09]} 12. Ng3 {[%emt 0:00:45]} Qd7 {[%emt 0:00:23]} 13. exf5 {[%emt 0:08:45]} exf5 {[%emt 0:00:25]} 14. Rf2 {[%emt 0:03:40]} O-O-O {[%emt 0:00:39]} 15. Rb1 {[%emt 0:07:34]} Rde8 {[%emt 0:00:35]} 16. Qf1 {[%emt 0:00:34]} Nd5 {[%emt 0:01:28]} 17. Re2 {[%emt 0:03:48]} h5 {[%emt 0:00:26]} 18. Bd2 {[%emt 0:03:11]} h4 {[%emt 0:00:08]} 19. Nh1 {[%emt 0:00:13]} Rxe2 {[%emt 0:00:21]} 20. Qxe2 {[%emt 0:00:14]} Nf6 {[%emt 0:00:26]} 21. Re1 {[%emt 0:07:29]} h3 {[%emt 0:00:40]} 22. Qe6 {[%emt 0:02:29]} hxg2 {[%emt 0:00:44]} 23. Kxg2 {[%emt 0:01:02]} Ng4 {[%emt 0:00:33]} 24. h3 {[%emt 0:01:34]} Bxf3+ {[%emt 0:00:31]} 25. Kxf3 {[%emt 0:00:58]} Rxh3+ {[%emt 0:00:11]} 26. Kg2 {[%emt 0:02:27]} Rh2+ {[%emt 0:00:10]} 27. Kg1 {[%emt 0:00:32]} Rxd2 {[%emt 0:00:34]} 28. Qd5 {[%emt 0:03:07]} Kc7 {[%emt 0:02:39]} 0-1